Cogmind - Beta 15 @@@ ROGUE MODE // 2025.08.13 @ 19:05:09 Player: Carter Result: Destroyed by Y-45 Defender with Heavy Assault Rifle Performance ------------- Evolutions (2) 1000 Regions Visited (5) 1000 Robots Destroyed (80) 400 Value Destroyed (2009) 2009 Prototype IDs (4) 80 Alien Tech Used (0) 0 Bonus (200) 200 TOTAL SCORE: 4689 Bonus ------- Entered Garrisons 200 Cogmind --------- Core Integrity 0/550 Matter 293/300 Energy 53/100 System Corruption 0% Temperature Cool (9) Movement Core (50) Location -8/Garrison Parts ------- > --- POWER (1) -------- (None) > --- PROPULSION (4) --- (None) > --- UTILITY (4) ------ Improved Utility Shielding > --- WEAPON (2) ------- Light Assault Rifle > --- INVENTORY (5) ---- Particle Charger Improved Medium Laser Advanced Beam Rifle Ion Cannon Gauss Rifle Peak State ------------ > --- POWER ------------ Cooled Ion Engine > --- PROPULSION ------- Light Treads Light Treads Light Treads > --- UTILITY ---------- Improved Melee Analysis Suite Improved Melee Analysis Suite Improved Melee Analysis Suite Improved Melee Analysis Suite > --- WEAPON ----------- Lightning Gun Makeshift Axe > --- INVENTORY -------- Light Ion Engine Lightning Gun Spread Laser Mini Grenade Launcher Plasma Cutter [Rating: 31] Favorites ----------- Power Light Ion Engine Engine Light Ion Engine Power Core Light Nuclear Core Propulsion Light Treads Treads Light Treads Leg Aluminum Leg Flight Unit Improved VTOL Module Utility Terrain Scan Processor Device Shield Generator Storage Small Storage Unit Processor Terrain Scan Processor Hackware Hacking Suite Protection Core Shielding Weapon Lightning Gun Energy Gun Lightning Gun Energy Cannon Beam Cannon Ballistic Gun Minigun Launcher Mini Grenade Launcher Slashing Weapon Makeshift Axe Special Melee Weapon Improved Datajack Build | -11 -10 -9 -9 -8 -8 ------- Run | Yrd Mat Mat Min Mat Gar Slots Evolved 4 | . . 2 . 2 . Power . | . . . . . . Propulsion 2 | . . 1 . 1 . Utility 2 | . . 1 . 1 . Weapon . | . . . . . . Parts Attached 74 | 5 5 36 3 16 9 Power 10 | 1 . 7 1 1 . Engine 9 | 1 . 6 1 1 . Core 1 | . . 1 . . . Reactor . | . . . . . . Propulsion 19 | 2 . 10 2 1 4 Treads 8 | . . 2 2 1 3 Leg 7 | 2 . 4 . . 1 Wheel . | . . . . . . Hover . | . . . . . . Flight 4 | . . 4 . . . Utility 19 | . 4 6 . 9 . Device 3 | . . 2 . 1 . Storage 1 | . 1 . . . . Processor 7 | . 2 1 . 4 . Hackware 2 | . 1 . . 1 . Protection 6 | . . 3 . 3 . Artifact . | . . . . . . Weapon 26 | 2 1 13 . 5 5 Energy Gun 12 | 2 . 6 . 3 1 Energy Cannon 2 | . 1 . . . 1 Ballistic Gun 8 | . . 4 . 1 3 Ballistic Cannon . | . . . . . . Launcher 1 | . . 1 . . . Special Weapon . | . . . . . . Impact Weapon . | . . . . . . Slashing Weapon 1 | . . . . 1 . Piercing Weapon . | . . . . . . Special Melee Weapon 2 | . . 2 . . . Unidentified Prototypes 4 | . . 2 1 . 1 Parts Lost 29 | . 1 11 . 5 12 Power 5 | . . 3 . . 2 Propulsion 10 | . . 3 . 2 5 Utility 9 | . 1 4 . 1 3 Weapon 5 | . . 1 . 2 2 Highest Loss Streak 10 | . 1 3 . 5 10 To Critical Strikes . | . . . . . . Average Backups 5 | . 5 7 7 4 4 Power 1 | . . 1 1 1 . Propulsion 1 | . 2 1 . . . Utility . | . . 1 1 . 1 Weapon 2 | . 1 2 3 3 2 Tool/Special . | . . . . . . Unused Backups 15 | . 4 4 3 2 2 Power 1 | . . . 1 . . Propulsion . | . . . . . . Utility 5 | . 1 1 2 . 1 Weapon 8 | . 3 3 . 1 1 Tool/Special 1 | . . . . 1 . Average Slot Usage (%) 90 | . 97 96 86 76 90 Engine 10 | . 14 10 11 9 8 Treads 10 | . . 4 31 14 30 Leg 12 | . 28 18 . . . Flight 2 | . . 8 . . . Device 3 | . . 3 . 5 8 Storage 5 | . 5 11 11 . . Processor 11 | . 14 12 11 12 . Hackware 2 | . 6 . . 2 . Protection 8 | . . 5 . 14 25 Energy Gun 14 | . 23 8 22 13 10 Energy Cannon 1 | . 4 1 . . 5 Ballistic Gun 4 | . . 11 . 1 1 Peak Build Rating 31 | 5 10 25 14 31 24 Average Rating 16 | 3 8 16 13 24 22 On Entrance 10 | . 5 8 12 14 22 Naked Turns . | . . . . . . Heaviest Build 23 | 7 13 21 19 23 22 Greatest Support 80 | 20 20 40 60 60 80 Greatest Overweight (x) 5 | . 2 3 . 5 1 Average Overweight (x) . | . . . . . . Largest Inventory Capacity 8 | 5 8 8 8 8 5 Average Capacity 6 | 5 6 8 8 5 5 Most Carried 8 | . 8 8 8 8 5 Average Carried 5 | . 5 7 7 4 4 Final Capacity 8 | 5 8 8 8 5 5 Final Carried 8 | . 8 8 6 5 5 Class Distribution -------------------- 67% | Mutant 27% | Scavenger-Mutant 5% | Sprinter Dominant Class ---------------- Mutant | -10/Materials Mutant | -9/Materials Scavenger-Mutant | -9/Mines Mutant | -8/Materials Scavenger-Mutant | -8/Garrison Resources | -11 -10 -9 -9 -8 -8 ----------- Run | Yrd Mat Mat Min Mat Gar Matter Collected 1578 | 44 251 955 56 174 98 Remotely 72 | . . 72 . . . Salvage Created 2748 | 44 351 1228 175 562 388 Parts 199 | 2 37 84 17 32 27 Haulers Intercepted 2 | . . 1 . 1 . Recyclers Shooed 1 | . . 1 . . . Parts Field Recycled . | . . . . . . Retrieved Matter . | . . . . . . Parts Self-Destructed . | . . . . . . Prevented . | . . . . . . Kills | -11 -10 -9 -9 -8 -8 ------- Run | Yrd Mat Mat Min Mat Gar Combat Hostiles Destroyed 61 | 1 13 25 5 7 10 Melee 2 | . . . . 2 . Guns 48 | 1 8 21 5 5 8 Cannons 4 | . 2 . . . 2 AOE 7 | . 3 4 . . . Classes Destroyed 13 | 1 4 4 2 1 1 Worker 5 | . 1 1 . 3 . Builder 2 | . . 2 . . . Tunneler 1 | . . . 1 . . Hauler 2 | . . 1 . 1 . Recycler 3 | . . 2 . 1 . Operator 2 | . 1 . . 1 . Watcher 4 | . 2 2 . . . Swarmer 21 | . 9 5 3 . 4 Grunt 27 | 1 4 13 1 5 3 Brawler 1 | . . . 1 . . Duelist 1 | . . . . 1 . Sentry 10 | . . 7 . 1 2 Hunter 1 | . . . . . 1 Best Kill Streak 6 | 1 3 5 3 6 3 Combat Bots Only 4 | 1 3 4 3 2 3 Max Kills in Single Turn 3 | 1 2 3 1 1 1 Gunslinging 1 | . 1 . . . . Exploded 3 | . 2 3 . . . Melee 1 | . . . . 1 . Uniques/NPCs Destroyed . | . . . . . . Combat | -11 -10 -9 -9 -8 -8 -------- Run | Yrd Mat Mat Min Mat Gar Hostile Shots Fired 502 | 2 37 206 17 63 177 Missed 140 | 2 17 62 4 18 37 Hits 362 | . 20 144 13 45 140 Melee 6 | . . . . 6 . Projectile 356 | . 20 144 13 39 140 Critical Strikes 17 | . . 6 . 4 7 Actively Blocked 1 | . . . . 1 . Damage Taken 4639 | . 305 1839 106 769 1620 Core 1040 | . 124 348 18 154 396 Absorbed by Shields 276 | . . . . 22 254 Redirected to Shielding 237 | . . 53 . 13 171 Core Remaining (%) 52 | 100 50 . 8 . . Volleys Fired 202 | 2 24 109 10 27 30 Largest 2 | 2 2 2 2 2 2 Hottest 115 | 80 100 112 101 110 115 Shots Fired 376 | 4 48 207 20 52 45 Gun 356 | 4 42 201 20 52 37 Cannon 14 | . 6 . . . 8 Launcher 6 | . . 6 . . . Special . | . . . . . . Kinetic 169 | . . 146 . 6 17 Thermal 85 | . 6 55 10 . 14 Explosive 6 | . . 6 . . . Electromagnetic 116 | 4 42 . 10 46 14 Robot Hit Streak 14 | 3 5 14 6 5 11 Robot Miss Streak 4 | . 3 4 3 3 2 Penetration Max 1 | . . . . . 1 Secondary Targets 6 | . 1 3 1 . 1 Max Gunslinging Chain 1 | . 1 1 1 . 1 Shots Hit Robots 253 | 3 26 136 12 42 34 Core Hits 112 | 2 19 49 7 17 18 Critical Kills . | . . . . . . Critical Parts Destroyed 1 | . . 1 . . . Critical Strikes 8 | . 1 3 1 2 1 Burn 3 | . . 2 . . 1 Destroy 1 | . . 1 . . . Corrupt 2 | . 1 . 1 . . Sever 2 | . . . . 2 . Melee Attacks 22 | . . 3 . 19 . Impact . | . . . . . . Slashing 19 | . . . . 19 . Piercing . | . . . . . . Sneak Attacks 3 | . . . . 3 . Combat Hostiles . | . . . . . . Follow-up Attacks . | . . . . . . Damage Inflicted 5076 | 38 620 2446 185 1231 556 Guns 3643 | 38 316 2063 185 577 464 Cannons 179 | . 87 . . . 92 Explosions 600 | . 217 383 . . . Melee 654 | . . . . 654 . Ramming . | . . . . . . Kinetic 1874 | . . 1555 . 121 198 Thermal 1059 | . 304 508 87 . 160 Explosive 383 | . . 383 . . . Electromagnetic 1106 | 38 316 . 98 456 198 Impact . | . . . . . . Slashing 654 | . . . . 654 . Piercing . | . . . . . . Highest Corruption . | . . . . . . Average Corruption . | . . . . . . Corruption Purged . | . . . . . . Corruption Blocked . | . . . . . . Overload Shots . | . . . . . . Overflow Damage 172 | . . 5 . 164 3 Projectiles 3 | . . . . . 3 Explosions 5 | . . 5 . . . Melee 164 | . . . . 164 . Knockbacks . | . . . . . . Impact . | . . . . . . Kinetic . | . . . . . . Secondary . | . . . . . . Self-Inflicted Damage 170 | . 126 44 . . . Shots 4 | . 2 2 . . . Rammed . | . . . . . . Targets Rammed . | . . . . . . Kicked . | . . . . . . Crushed . | . . . . . . Highest Temperature 258 | 36 258 156 138 216 141 Average Temperature 56 | 20 56 54 61 70 48 Received Heat Transfer 1755 | . 54 750 6 366 579 Siege Activations . | . . . . . . Martial Activations . | . . . . . . Shielding Activations . | . . . . . . Robots Disrupted . | . . . . . . Combat Hostiles . | . . . . . . Robots Corrupted . | . . . . . . Combat Hostiles . | . . . . . . Parts Fried 3 | . . . . 1 2 Impact Corruptions . | . . . . . . Robots Melted . | . . . . . . Combat Hostiles . | . . . . . . Parts Melted 5 | . 1 4 . . . Heat Transferred 2420 | . 385 1443 222 . 370 Parts Sabotaged . | . . . . . . Parts Stolen . | . . . . . . Parts Stripped . | . . . . . . Power Chain Reactions 3 | . 3 . . . . Alert | -11 -10 -9 -9 -8 -8 ------- Run | Yrd Mat Mat Min Mat Gar Maximum Alert Level 1 | . . 1 . . 1 Low Security (%) 95 | 100 100 84 100 100 99 Level 1 4 | . . 15 . . . Level 2 . | . . . . . . Level 3 . | . . . . . . Level 4 . | . . . . . . Level 5 . | . . . . . . High Security . | . . . . . . Max Security . | . . . . . . Peak Influence 302 | 20 131 302 164 59 200 Initial 114 | . 6 10 114 46 . Average 75 | 1 53 136 134 15 85 Influence Increases 1863 | 20 422 804 125 252 240 Destroy 0b10 Robot/C 1220 | 20 260 500 100 140 200 Destroy 0b10 Robot/NC 95 | . 20 40 5 30 . Destroy Leader 252 | . 44 146 20 32 10 Successful Hack 5 | . . . . 5 . Disable Machine 15 | . 15 . . . . Destroy Structure 66 | . 38 28 . . . Partial Spotted 15 | . 15 . . . . Lose Combat Pursuer 195 | . 30 90 . 45 30 Influence Decreases 1733 | 10 406 536 300 371 110 Entered New Map 273 | . 4 16 180 73 . Time Decay 1205 | 10 392 410 120 273 . Lost Part 255 | . 10 110 . 25 110 Squads Dispatched 6 | . 2 2 . 2 . Investigation 2 | . 1 . . 1 . Extermination . | . . . . . . Reinforcement 4 | . 1 2 . 1 . Assault . | . . . . . . Garrison . | . . . . . . Intercept . | . . . . . . Searches Triggered . | . . . . . . Construction Impeded . | . . . . . . Haulers Reinforced . | . . . . . . Active Scanning Responses . | . . . . . . Cargo Convoy Interrupts . | . . . . . . Stealth | -11 -10 -9 -9 -8 -8 --------- Run | Yrd Mat Mat Min Mat Gar Distress Signals 6 | . 2 4 . . . Communications Jammed . | . . . . . . Distress Signals . | . . . . . . Times Spotted 103 | 1 20 47 6 13 16 Peak Tracking Total 8 | 1 4 8 4 3 6 Tactical Retreats 8 | . 1 3 . 3 1 Traps | -11 -10 -9 -9 -8 -8 ------- Run | Yrd Mat Mat Min Mat Gar Traps Triggered 4 | . 2 . . 1 1 Indirectly . | . . . . . . Trap Hack Attempts . | . . . . . . Triggered . | . . . . . . Disarmed . | . . . . . . Reprogrammed . | . . . . . . Reused . | . . . . . . Traps Extracted . | . . . . . . Installed . | . . . . . . Triggered . | . . . . . . Machines | -11 -10 -9 -9 -8 -8 ---------- Run | Yrd Mat Mat Min Mat Gar Machines Disabled 2 | . 2 . . . . Max in Single Turn 2 | . 2 . . . . Machines Repaired . | . . . . . . Machines Dismantled . | . . . . . . Machines Sabotaged . | . . . . . . Overloaded Fab Kills . | . . . . . . Hacking | -11 -10 -9 -9 -8 -8 --------- Run | Yrd Mat Mat Min Mat Gar Machines Accessed 7 | . 3 1 . 2 1 Terminals 5 | . 2 1 . 1 1 Fabricators . | . . . . . . Repair Stations . | . . . . . . Recycling Units 1 | . 1 . . . . Scanalyzers . | . . . . . . Garrison Access 1 | . . . . 1 . Total Hacks 8 | . 3 1 . 2 2 Successful 5 | . 3 . . 2 . Failed 3 | . . 1 . . 2 Catastrophic 1 | . . 1 . . . Database Lockouts . | . . . . . . Manual . | . . . . . . Terminals 6 | . 2 1 . 1 2 Fabricators . | . . . . . . Repair Stations . | . . . . . . Recycling Units 1 | . 1 . . . . Scanalyzers . | . . . . . . Garrison Access 1 | . . . . 1 . Terminal Hacks 3 | . 2 . . 1 . Record 1 | . 1 . . . . Alert Level 1 | . 1 . . . . Hauler Manifests 1 | . . . . 1 . Fabricator Hacks . | . . . . . . Repair Station Hacks . | . . . . . . Recycling Unit Hacks 1 | . 1 . . . . Retrieve Matter 1 | . 1 . . . . Scanalyzer . | . . . . . . Garrison Access Hacks 1 | . . . . 1 . Unlock Access 1 | . . . . 1 . Unauthorized Hacks . | . . . . . . Terminals . | . . . . . . Fabricators . | . . . . . . Repair Stations . | . . . . . . Recycling Units . | . . . . . . Scanalyzers . | . . . . . . Garrison Access . | . . . . . . Data Cores Recovered 1 | . 1 . . . . Used . | . . . . . . Hacking Detections 4 | . 1 1 . 1 1 Full Trace Events . | . . . . . . Feedback Events . | . . . . . . Feedback Blocked . | . . . . . . Robot Schematics Acquired . | . . . . . . Robots Built . | . . . . . . Authchips . | . . . . . . Time . | . . . . . . Total Robot Build Rating . | . . . . . . Part Schematics Acquired . | . . . . . . Parts Built . | . . . . . . Authchips . | . . . . . . Time . | . . . . . . Total Part Build Rating . | . . . . . . Parts Repaired . | . . . . . . Time . | . . . . . . Parts Recycled . | . . . . . . Recycled Matter . | . . . . . . Retrieved Matter . | . . . . . . Retrieved Components . | . . . . . . Parts Scanalyzed . | . . . . . . Part Schematics Acquired . | . . . . . . Parts Damaged . | . . . . . . Bothacking | -11 -10 -9 -9 -8 -8 ------------ Run | Yrd Mat Mat Min Mat Gar Used RIF Installer . | . . . . . . Robots Hacked 1 | . . 1 . . . Non-combat 1 | . . 1 . . . Combat . | . . . . . . Robot Hacks Applied 1 | . . 1 . . . parse_system 1 | . . 1 . . . Relay Couplers Released . | . . . . . . Fabnet Peak Effective % . | . . . . . . Robots Rewired . | . . . . . . Allies Hacked . | . . . . . . Hacks Repelled . | . . . . . . Allies | -11 -10 -9 -9 -8 -8 -------- Run | Yrd Mat Mat Min Mat Gar Total Allies . | . . . . . . Largest Group . | . . . . . . Highest-Rated Group . | . . . . . . Highest-Rated Ally . | . . . . . . Total Orders . | . . . . . . Ally Attacks . | . . . . . . Total Damage . | . . . . . . Kills . | . . . . . . Allies Corrupted . | . . . . . . Allies Melted . | . . . . . . Intel | -11 -10 -9 -9 -8 -8 ------- Run | Yrd Mat Mat Min Mat Gar Active Infowar (turns) . | . . . . . . Robot Analysis Total . | . . . . . . Derelict Logs Recovered . | . . . . . . Drone Launches . | . . . . . . Drone Recoveries . | . . . . . . Exploration | -11 -10 -9 -9 -8 -8 ------------- Run | Yrd Mat Mat Min Mat Gar Turns Passed 4476 | 83 1112 1295 253 1170 563 Spaces Moved 2500 | 70 730 805 133 520 242 Core 70 | 19 42 2 . 2 5 Treads 996 | . . 115 133 518 230 Legs 1171 | 51 688 425 . . 7 Wheels . | . . . . . . Hover . | . . . . . . Flight 263 | . . 263 . . . Fastest Speed 29 | 50 120 29 160 160 50 Average Speed 134 | 101 121 101 160 192 157 Slowest Speed 300 | 120 190 200 160 300 240 Overloaded Moves . | . . . . . . Propulsion Burnouts . | . . . . . . Robots Hopped 4 | . . 4 . . . Potential Cave-ins 3 | . . 3 . . . Cave-ins Triggered . | . . . . . . Exploration Rate (%) 36 | 5 85 51 18 29 30 Regions Visited 5 Branch Regions 1 Pre-discovered Areas . | . . . . . . Known Exits Taken 1 | . . . . 1 . Unknown Exits Taken 4 | 1 1 1 1 . . Scrap Searched 1 | . . . 1 . . Spaces Dug . | . . . . . . Terrain Destroyed 108 | . 35 73 . . . Melee . | . . . . . . Projectile . | . . . . . . AOE 108 | . 35 73 . . . Terrain Rammed . | . . . . . . Walls Destroyed . | . . . . . . Machines Disabled . | . . . . . . Actions | -11 -10 -9 -9 -8 -8 --------- Run | Yrd Mat Mat Min Mat Gar Total 3236 | 76 905 1098 156 621 380 Wait 325 | . 124 91 2 16 92 Move 2487 | 69 729 796 132 519 242 Hop 4 | . . 4 . . . Pick Up 43 | . 14 18 3 7 1 Fast Attach 43 | 5 5 13 1 13 6 Attach 29 | . 2 18 1 4 4 Detach 24 | . 2 11 . 8 3 Swap 12 | . . 9 1 1 1 Drop 45 | . 5 26 6 7 1 Fire 202 | 2 24 109 10 27 30 Melee 22 | . . 3 . 19 . Ram . | . . . . . . Kick . | . . . . . . Crush . | . . . . . . Escape Stasis . | . . . . . . Rewire . | . . . . . . Trap . | . . . . . . Miscellaneous . | . . . . . . Route ------- -11/Scrapyard -10/Materials (discovered 4 exits: *Mat x2 / [*Min x2]) -9/Materials (discovered 3 exits: *Mat / [*Min x2]) -9/Mines -8/Materials -8/Garrison History --------- Turn | Location | Event 2 | -11/Scrapyard | Met Revision 17 67 | -11/Scrapyard | Discovered new exit (range 8) 84 | -11/Scrapyard | Entered Materials 304 | -10/Materials | Build established: Mutant 400 | -10/Materials | Discovered new exit (range 9) 420 | -10/Materials | Discovered new exit (range 16) 1013 | -10/Materials | Discovered new exit (range 16) 1146 | -10/Materials | Discovered new exit (range 16) 1196 | -10/Materials | Entered another Materials area 1196 | -9/Materials | Evolved 2 slots: Propulsion x1, Utility x1 1420 | -9/Materials | Discovered new exit (range 11) 1560 | -9/Materials | Core integrity fell below 50% 1755 | -9/Materials | Discovered new exit (range 16) 2205 | -9/Materials | Core integrity fell below 20% 2351 | -9/Materials | Discovered new exit (range 15) 2402 | -9/Materials | Lost 3 parts (1p1n1u) 2491 | -9/Materials | Entered Mines 2566 | -9/Mines | Discovered new exit (range 5) 2620 | -9/Mines | A Derelict revealed a hidden shortcut to a safe place 2744 | -9/Mines | Entered Materials 2744 | -8/Materials | Evolved 2 slots: Propulsion x1, Utility x1 2805 | -8/Materials | Build established: Scavenger-Mutant 3115 | -8/Materials | Lost 5 parts (2n1u2w) 3358 | -8/Materials | Build established: Mutant 3912 | -8/Materials | Identified exit to Garrison 3914 | -8/Materials | Entered Garrison 3934 | -8/Garrison | Triggered checkpoint 4250 | -8/Garrison | Build established: Scavenger-Mutant 4250 | -8/Garrison | Triggered checkpoint 4380 | -8/Garrison | Triggered checkpoint 4400 | -8/Garrison | Triggered checkpoint 4440 | -8/Garrison | Core integrity fell below 50% 4467 | -8/Garrison | Core integrity fell below 20% 4477 | -8/Garrison | Destroyed by Y-45 Defender with Heavy Assault Rifle Last Messages --------------- Lgt. Nuclear Core, Aluminum Leg. 04438_ Critical hit (Burn: +37). 04442_ Lgt. Treads destroyed. 04442_ Critical hit (Burn: +25). 04443_ Lgt. Treads destroyed. 04445_ G-47 Trooper heat damages Aluminum Leg, Lgt. Nuclear Core, Particle Gun, Imp. Heat Sink. 04445_ Destroyed Lgt. Nuclear Core. 04447_ G-47 Trooper destroyed. 04449_ Lgt. Treads destroyed. 04451_ Core Shielding destroyed. 04454_ Lgt. Ion Engine destroyed. 04455_ Critical hit (Burn: +37). 04457_ Shield Generator destroyed. 04459_ Acquired Carbon-fiber Leg. 04460_ Lgt. Assault Rifle destroyed. 04470_ Acquired Lgt. Assault Rifle. 04474_ Carbon-fiber Leg destroyed. 04476_ Acquired 18 matter. Map ----- +----------------------------------------------------+ | ????????##### #?????????????????????? | | ????????? #?????????????????????? | | ??????????? #?????????????????????? | | ????????????# ?# ## #?????????????????????? | | ??????????### ## ## ###???????????????????? | | ??????????# #???????????????????? | | ??????????# #???????????????????? | | ??????????# #???????????????????? | | ??????????# #???????????#####???? | | ??????????### ## ## ###???????????#"# #???? | | ?????????#### ## ## #?????????????#" #???? | | ?????? ##????????????#" #???? | | ?????? [!= +?????????????#" #???? | | ??????####+## =!%%#?????????????#"# #???? | | ?????????# ?## ## ##%Y##?????????????### #???? | | ?????????#???# ?# ?#Y[#????????????????# #???? | | ?????????????# ??####??#=!#????????????????# #???? | | ?????????????# ????????# #????????????????# ###?? | | ?????????????#?????????# #????????????????# #?? | | ???????????????????????# #????????????????# #?? | | ???????????????????????# #??????###???????# #?? | | ???????????????????????# ########T#####???# #?? | | ???????????????????????#==Y*= #???# #?? | | ???????????????????????#% =%* ##### ###?? | | ???????????????????????##/########### !%%#???? | | ????????????????????????#@#?????????# #####[#???? | | ????????????????????##### #####?????# #??##!##??? | | ????????????????????# #?????# #??#* !#??? | | ????????????????????# #?????# #??# "??? | | ????????????????????# #?????# #### "??? | | ????????????????????# " ####### ## T#??? | | ????????????????????#"" """ # ######??? | | ????????????????????#" " #### ## #???????? | | ????????????????????#" #??# #######???????? | | ????????????????????#" " #??# #?????????????? | | ????????????????????#""""" #??# #?????????????? | | ????????????????????#####"#####??# #?????????????? | | ????????????????????????#"???????# ##????????????? | | ????????????????????????##???????# "#????????????? | | ?????????????????????????????????# T#????????????? | | ?????????????????????????????????#""#????????????? | | ?????????????????????????????????####????????????? | | ?????????????????????????????????????????????????? | | ?????????????????????????????????????????????????? | | ?????????????????????????????????????????????????? | | ?????????????????????????????????????????????????? | | ?????????????????????????????????????????????????? | | ?????????????????????????????????????????????????? | | ?????????????????????????????????????????????????? | | ?????????????????????????????????????????????????? | +----------------------------------------------------+ Best States ------------- Heat Dissipation 38 Energy Generation 14 Energy Capacity 280 Matter Stores 300 Matter Capacity 300 Sight Range 16 Terrain Scan Density 160 Armor Coverage 150 Core Shielding 20 Propulsion Shielding 66 Utility Shielding 66 Weapon Shielding 33 Evasion (%) 64 Melee Accuracy 24 Recoil Reduction 4 Salvage Targeting 1 Offensive Hacking 10 Defensive Hacking 10 Item Schematics ----------------- None Robot Schematics ------------------ None Fabricated ------------ Nothing Repaired ---------- Nothing Alien Tech Used ----------------- None Achievements -------------- Shopping List Challenges ------------ None Game ------ Seed FocalDynamicExtrapolator Manual? 0 Play Time 00:51:47 Cumulative 3.6 hours Start 2025.08.12 @ 19:27:50 End 2025.08.13 @ 19:05:09 Sessions 3 Manual Loads 0 Difficulty Rogue Special Mode None Game No. 3 Rogue 3 Adventurer 0 Explorer 0 Win Type - Total 0 Types 0/0/0/0/0/0/0/0/0/0 Lore% 0 Gallery% 9 Achievement% 7 Wizard Run 0 Options --------- Layout 2 ASCII 0 Keyboard 1 Movement Vi Keybinds 0 Fullscreen 1 Font 24/Cog Map View 25x22 Zoom Use 82% Tactical HUD 1 Map Filters NONE Filters NONE Steam 1 RUN: d6b6b73c-71ad-4209-af47-6d2d22c2b9e3